fUST/lending_fUST_20250825
["ID","MTS","AMOUNT","RATE_DAILY","PERIOD"]
[381305370,1756132233005,-6415.13382511,0.00031235,20]
[381305371,1756132233017,-300.0,0.00031235,20]
[381305375,1756132233030,-4558.69426465,0.00031235,20]
[381305386,1756132233873,214.23946069,0.00031234,2]
[381305387,1756132233943,271.62301715,0.00031234,2]
[381305388,1756132236928,199.0,0.00026749,20]
[381305396,1756132238526,-2989.88799947,0.00031235,20]
[381305397,1756132238557,-75061.29663473,0.00031235,20]
[381305398,1756132238593,-817.1897567,0.00031235,20]
[381305399,1756132238604,-1430.69635413,0.00031235,20]
[381305400,1756132238615,-678.51143,0.00031235,20]
[381305401,1756132238626,-296.25,0.00031235,20]
[381305402,1756132238637,-829.92113084,0.00031235,20]
[381305403,1756132238654,-326.75342642,0.00031235,20]
[381305412,1756132238838,3545.2583653,0.00031552,2]
[381305413,1756132239115,176.5080206,0.00036553,2]
[381305448,1756132240772,-4534.0413,0.00031235,20]
[381305450,1756132240783,-22411.0,0.00031235,20]
[381305792,1756132244289,-45.22344466,0.00031235,20]
[381306023,1756132246751,-7224.90685183,0.00031235,20]
[381306025,1756132246761,-10266.174931,0.00031235,30]
[381306027,1756132246771,-94365.38260447,0.00031235,2]
[381306029,1756132246784,-82925.49755439,0.00031235,2]
[381306031,1756132246793,-472.44013651,0.00037065,2]
[381306033,1756132246803,-302.46559329,0.00037166,28]
[381306035,1756132246813,-472.44013647,0.00037585,2]
[381306037,1756132246823,-167.0,0.00037884,120]
[381306039,1756132246832,-302.25116183,0.00038,2]
[381306041,1756132246842,-472.44013647,0.00038106,2]
[381306043,1756132246851,-500.0,0.00038143,5]
[381306045,1756132246860,-2200.0,0.00038235,7]
[381306047,1756132246870,-500.0,0.00038356,14]
[381306049,1756132246879,-500.0,0.0003863,14]
[381306051,1756132246889,-216.04034502,0.00038809,2]
[381306053,1756132246899,-302.46559329,0.00038892,32]
[381306055,1756132246909,-500.0,0.00038904,14]
[381306057,1756132246919,-2200.0,0.00039057,7]
[381306059,1756132246928,-7871.61,0.000391,14]
[381306061,1756132246938,-568.75,0.000391,7]
[381306063,1756132246947,-401.58,0.00039178,14]
[381306065,1756132246957,-3047.01184088,0.00039232,3]
[381306067,1756132246966,-1445.51,0.00039241,120]
[381306069,1756132246975,-207.723117,0.00039242,30]
[381306071,1756132246987,-207.723117,0.00039242,30]
[381306074,1756132246996,-151.0,0.00039242,30]
[381306077,1756132247006,-151.0,0.00039242,30]
[381306080,1756132247015,-207.723117,0.00039242,30]
[381306083,1756132247026,-151.0,0.00039242,30]
[381306086,1756132247035,-151.0,0.00039242,30]
[381306089,1756132247045,-151.0,0.00039242,30]
[381306092,1756132247054,-207.723117,0.00039242,30]
[381306094,1756132247064,-151.0,0.00039242,30]
[381306096,1756132247074,-151.0,0.00039242,30]
[381306098,1756132247083,-151.0,0.00039242,30]
[381306100,1756132247093,-152.547188,0.00039242,30]
[381306101,1756132247102,-151.0,0.00039242,30]
[381306103,1756132247111,-151.0,0.00039242,30]
[381306105,1756132247122,-151.0,0.00039242,30]
[381306107,1756132247131,-151.0,0.00039242,30]
[381306109,1756132247141,-151.0,0.00039242,30]
[381306111,1756132247150,-246.450814,0.00039242,30]
[381306113,1756132247160,-246.450814,0.00039242,30]
[381306115,1756132247170,-246.450814,0.00039242,30]
[381306117,1756132247180,-246.450814,0.00039242,30]
[381306119,1756132247189,-370000.0,0.00039242,2]
[381306121,1756132247198,-232.4766599,0.00039246,2]
[381306123,1756132247208,-160.0,0.00039251,2]
[381306125,1756132247218,-2078.37,0.000393,7]
[381306127,1756132247229,-152.479012,0.000394,2]
[381306129,1756132247238,-794.82779778,0.00039451,120]
[381306131,1756132247247,-321.8774329,0.00039534,30]
[381306133,1756132247257,-455.53629554,0.00039579,2]
[381306135,1756132247267,-2200.0,0.00039879,7]
[381306137,1756132247276,-160.0,0.00039938,2]
[381306139,1756132247285,-500.0,0.00039938,2]
[381306141,1756132247295,-1500.0,0.0004,120]
[381306143,1756132247305,-1500.0,0.0004,30]
[381306145,1756132247314,-1023.39153393,0.0004,120]
[381306147,1756132247324,-500.0,0.00040151,5]
[381306149,1756132247333,-435.28740584,0.00040202,3]
[381306151,1756132247343,-201.0,0.0004041,55]
[381306153,1756132247353,-7871.61,0.000405,14]
[381306155,1756132247362,-568.75,0.000405,7]
[381306156,1756132247372,-302.46559329,0.00040619,36]
[381306158,1756132247382,-973.0,0.00040628,2]
[381306161,1756132247392,-2155.0,0.00040628,2]
[381306162,1756132247402,-637.0,0.00040628,2]
[381306164,1756132247412,-409.0,0.00040628,2]
[381306166,1756132247422,-2200.0,0.00040701,7]
[381306168,1756132247431,-1445.51,0.00040885,120]
[381306170,1756132247441,-7844.67784185,0.00040995,2]
[381306172,1756132247451,-1000.0,0.00040995,2]
[381306174,1756132247461,-1000.0,0.00041,120]
[381306176,1756132247471,-1000.0,0.00041,120]
[381306179,1756132247485,-1238.71,0.00041,120]
[381306180,1756132247495,-204.93543,0.00041,120]
[381306182,1756132247504,-500.0,0.00041073,5]
[381306184,1756132247513,-500.0,0.00041073,5]
[381306186,1756132247524,-500.0,0.00041073,5]
[381306188,1756132247534,-500.0,0.00041073,5]
[381306190,1756132247543,-502.32416053,0.00041073,5]
[381306192,1756132247553,-503.27584518,0.00041073,5]
[381306194,1756132247564,-500.0,0.00041073,5]
[381306196,1756132247574,-502.51902557,0.00041073,5]
[381306198,1756132247583,-500.0,0.00041073,5]
[381306200,1756132247592,-573.51611395,0.00041073,5]
[381306202,1756132247601,-500.0,0.00041073,5]
[381306204,1756132247612,-177.74769555,0.00041073,5]
[381306206,1756132247622,-500.0,0.00041073,5]
[381306208,1756132247632,-501.40769734,0.00041073,5]
[381306210,1756132247641,-500.0,0.00041073,5]
[381306212,1756132247652,-173.96261013,0.00041073,5]
[381306214,1756132247661,-500.0,0.00041073,5]
[381306216,1756132247671,-500.0,0.00041073,5]
[381306218,1756132247681,-500.0,0.00041073,5]
[381306220,1756132247690,-500.0,0.00041073,5]
[381306222,1756132247700,-500.0,0.00041073,5]
[381306224,1756132247710,-423.10410092,0.00041073,5]
[381306226,1756132247720,-500.0,0.00041073,5]
[381306228,1756132247730,-500.0,0.00041073,5]
[381306230,1756132247740,-501.30865883,0.00041073,5]
[381306232,1756132247751,-500.0,0.00041073,5]
[381306234,1756132247760,-500.39908462,0.00041073,5]
[381306236,1756132247769,-501.122322,0.00041073,5]
[381306238,1756132247779,-500.0,0.00041073,5]
[381306240,1756132247789,-500.0,0.00041073,5]
[381306242,1756132247798,-500.0,0.00041073,5]
[381306244,1756132247808,-154.79434068,0.00041073,5]
[381306246,1756132247818,-870.57481168,0.00041084,3]
[381306247,1756132247827,-4352.8740584,0.00041085,3]
[381306248,1756132247836,-202.22517631,0.00041094,30]
[381306249,1756132247846,-160.41219813,0.00041094,10]
[381306250,1756132247855,-160.0,0.00041094,30]
[381306251,1756132247864,-12741.29184439,0.00041094,120]
[381306252,1756132247874,-300.0,0.00041094,120]
[381306253,1756132247883,-151.0,0.00041094,120]
[381306254,1756132247893,-151.0,0.00041094,120]
[381306255,1756132247902,-250.0,0.00041094,120]
[381306256,1756132247912,-151.0,0.00041094,120]
[381306257,1756132247921,-151.0,0.00041094,120]
[381306258,1756132247929,-151.0,0.00041094,120]
[381306259,1756132247939,-300.0,0.00041094,120]
[381306260,1756132247948,-250.0,0.00041094,120]
[381306262,1756132247958,-156.587,0.00041094,120]
[381306264,1756132247967,-151.0,0.00041094,120]
[381306266,1756132247976,-151.0,0.00041094,120]
[381306268,1756132247987,-151.0,0.00041094,120]
[381306269,1756132247996,-250.0,0.00041094,120]
[381306272,1756132248006,-300.0,0.00041094,120]
[381306274,1756132248016,-162.380719,0.00041094,120]
[381306276,1756132248026,-151.0,0.00041094,120]
[381306278,1756132248036,-250.0,0.00041094,120]
[381306280,1756132248046,-151.0,0.00041094,120]
[381306282,1756132248056,-300.0,0.00041094,120]
[381306284,1756132248066,-151.0,0.00041094,120]
[381306286,1756132248076,-168.3888056,0.00041094,120]
[381306288,1756132248085,-151.0,0.00041094,120]
[381306290,1756132248095,-250.0,0.00041094,120]
[381306292,1756132248105,-174.61919141,0.00041094,120]
[381306294,1756132248115,-300.0,0.00041094,120]
[381306296,1756132248125,-151.0,0.00041094,120]
[381306298,1756132248135,-151.0,0.00041094,120]
[381306300,1756132248145,-300.0,0.00041094,120]
[381306302,1756132248155,-250.0,0.00041094,120]
[381306304,1756132248165,-181.08010149,0.00041094,120]
[381306306,1756132248175,-151.0,0.00041094,120]
[381306308,1756132248184,-151.0,0.00041094,120]
[381306310,1756132248194,-300.0,0.00041094,120]
[381306312,1756132248204,-300.0,0.00041094,120]
[381306314,1756132248213,-187.78006525,0.00041094,120]
[381306316,1756132248224,-151.0,0.00041094,120]
[381306318,1756132248234,-250.0,0.00041094,120]
[381306320,1756132248243,-151.0,0.00041094,120]
[381306322,1756132248252,-300.0,0.00041094,120]
[381306324,1756132248262,-151.0,0.00041094,120]
[381306326,1756132248272,-250.0,0.00041094,120]
[381306328,1756132248281,-300.0,0.00041094,120]
[381306330,1756132248291,-194.72792766,0.00041094,120]
[381306332,1756132248300,-300.0,0.00041094,120]
[381306334,1756132248310,-151.0,0.00041094,120]
[381306336,1756132248319,-151.0,0.00041094,120]
[381306338,1756132248329,-250.0,0.00041094,120]
[381306340,1756132248339,-300.0,0.00041094,120]
[381306342,1756132248349,-201.93286099,0.00041094,120]
[381306344,1756132248359,-300.0,0.00041094,120]
[381306346,1756132248368,-300.0,0.00041094,120]
[381306348,1756132248378,-245.86959066,0.00041094,120]
[381306350,1756132248387,-194.72792766,0.00041094,120]
[381306352,1756132248397,-151.0,0.00041094,120]
[381306354,1756132248406,-151.0,0.00041094,120]
[381306356,1756132248415,-300.0,0.00041094,120]
[381306358,1756132248424,-300.0,0.00041094,120]
[381306360,1756132248433,-1888.0,0.00041094,30]
[381306362,1756132248443,-300.0,0.00041094,120]
[381306364,1756132248453,-300.0,0.00041094,120]
[381306366,1756132248462,-1957.856,0.00041094,30]
[381306368,1756132248471,-300.0,0.00041094,120]
[381306370,1756132248485,-2030.296672,0.00041094,30]
[381306372,1756132248495,-300.0,0.00041094,120]
[381306374,1756132248505,-220.12329846,0.00041094,120]
[381306376,1756132248514,-500.0,0.00041094,120]
[381306378,1756132248526,-2105.41764886,0.00041094,30]
[381306380,1756132248535,-151.0,0.00041094,120]
[381306382,1756132248545,-500.0,0.00041094,120]
[381306384,1756132248556,-2183.31810187,0.00041094,30]
[381306386,1756132248566,-151.0,0.00041094,120]
[381306388,1756132248577,-2264.10087164,0.00041094,30]
[381306390,1756132248586,-500.0,0.00041094,120]
[381306392,1756132248596,-151.0,0.00041094,120]
[381306394,1756132248606,-2128.69151707,0.00041094,30]
[381306396,1756132248615,-500.0,0.00041094,120]
[381306398,1756132248625,-151.0,0.00041094,120]
[381306400,1756132248635,-500.0,0.00041094,120]
[381306403,1756132248644,-151.0,0.00041094,120]
[381306404,1756132248654,-500.0,0.00041094,120]
[381306406,1756132248664,-151.0,0.00041094,120]
[381306409,1756132248673,-500.0,0.00041094,120]
[381306411,1756132248682,-151.33110986,0.00041094,120]
[381306412,1756132248692,-500.0,0.00041094,120]
[381306415,1756132248702,-500.0,0.00041094,120]
[381306417,1756132248711,-500.0,0.00041094,120]
[381306419,1756132248720,-500.0,0.00041094,120]
[381306420,1756132248731,-500.0,0.00041094,120]
[381306422,1756132248740,-500.0,0.00041094,120]
[381306424,1756132248750,-300.0,0.00041094,120]
[381306427,1756132248759,-500.0,0.00041094,120]
[381306428,1756132248769,-300.0,0.00041094,120]
[381306431,1756132248778,-500.0,0.00041094,120]
[381306432,1756132248789,-157.61400207,0.00041094,120]
[381306435,1756132248799,-500.0,0.00041094,120]
[381306437,1756132248808,-300.0,0.00041094,120]
[381306438,1756132248818,-500.0,0.00041094,120]
[381306440,1756132248827,-500.0,0.00041094,120]
[381306442,1756132248837,-300.0,0.00041094,120]
[381306444,1756132248847,-500.0,0.00041094,120]
[381306446,1756132248856,-300.0,0.00041094,120]
[381306449,1756132248866,-300.0,0.00041094,120]
[381306450,1756132248875,-500.0,0.00041094,120]
[381306452,1756132248885,-300.0,0.00041094,120]
[381306454,1756132248895,-300.0,0.00041094,120]
[381306456,1756132248904,-151.5643363,0.00041094,120]
[381306459,1756132248914,-300.0,0.00041094,120]
[381306461,1756132248924,-1007.18216371,0.00041095,61]
[381306463,1756132248934,-480.0,0.00041095,30]
[381306465,1756132248943,-480.0,0.00041095,30]
[381306467,1756132248952,-480.0,0.00041095,30]
[381306469,1756132248962,-519.63,0.00041095,30]
[381306471,1756132248972,-480.0,0.00041095,30]
[381306472,1756132248983,-480.0,0.00041095,30]
[381306475,1756132248992,-480.0,0.00041095,30]
[381306476,1756132249002,-1895.08,0.00041095,30]
[381306478,1756132249012,-480.0,0.00041095,30]
[381306481,1756132249022,-480.0,0.00041095,30]
[381306482,1756132249031,-480.0,0.00041095,30]
[381306485,1756132249041,-480.0,0.00041095,30]
[381306486,1756132249051,-953.58,0.00041095,30]
[381306488,1756132249060,-1025.6,0.00041095,30]
[381306490,1756132249070,-1105.07,0.00041095,30]
[381306493,1756132249081,-811.93,0.00041095,30]
[381306495,1756132249091,-480.0,0.00041095,30]
[381306497,1756132249100,-480.0,0.00041095,30]
[381306499,1756132249110,-480.0,0.00041095,30]
[381306501,1756132249120,-480.0,0.00041095,30]
[381306503,1756132249130,-480.0,0.00041095,30]
[381306504,1756132249138,-480.0,0.00041095,5]
[381306506,1756132249148,-759.39,0.00041095,30]
[381306508,1756132249158,-2791.8,0.00041095,30]
[381306510,1756132249168,-480.0,0.00041095,30]
[381306512,1756132249178,-480.0,0.00041095,30]
[381306515,1756132249189,-555.81,0.00041095,30]
[381306517,1756132249199,-480.0,0.00041095,30]
[381306519,1756132249208,-480.0,0.00041095,30]
[381306521,1756132249218,-480.0,0.00041095,30]
[381306523,1756132249228,-480.0,0.00041095,30]
[381306525,1756132249241,-480.0,0.00041095,30]
[381306527,1756132249250,-577.89,0.00041095,30]
[381306529,1756132249259,-480.0,0.00041095,30]
[381306531,1756132249269,-480.0,0.00041095,30]
[381306533,1756132249278,-480.0,0.00041095,30]
[381306535,1756132249288,-480.0,0.00041095,30]
[381306537,1756132249297,-480.0,0.00041095,30]
[381306539,1756132249306,-480.0,0.00041095,30]
[381306541,1756132249316,-480.0,0.00041095,30]
[381306543,1756132249325,-480.0,0.00041095,30]
[381306545,1756132249335,-1179.14,0.00041095,30]
[381306547,1756132249344,-480.0,0.00041095,30]
[381306549,1756132249353,-480.0,0.00041095,30]
[381306551,1756132249363,-228.89774205,0.00041095,30]
[381306553,1756132249373,-480.0,0.00041095,30]
[381306555,1756132249383,-301.4,0.00041095,30]
[381306557,1756132249392,-480.0,0.00041095,30]
[381306559,1756132249401,-480.0,0.00041095,30]
[381306561,1756132249410,-480.0,0.00041095,30]
[381306563,1756132249420,-931.19,0.00041095,30]
[381306565,1756132249429,-480.0,0.00041095,30]
[381306567,1756132249438,-480.0,0.00041095,30]
[381306569,1756132249447,-480.0,0.00041095,30]
[381306571,1756132249457,-151.0,0.00041095,30]
[381306573,1756132249466,-151.0,0.00041095,30]
[381306575,1756132249475,-151.0,0.00041095,30]
[381306577,1756132249490,-151.0,0.00041095,30]
[381306579,1756132249500,-480.0,0.00041095,30]
[381306581,1756132249509,-151.0,0.00041095,30]
[381306583,1756132249518,-480.0,0.00041095,30]
[381306585,1756132249529,-933.93,0.00041095,30]
[381306587,1756132249538,-151.0,0.00041095,30]
[381306589,1756132249548,-151.0,0.00041095,30]
[381306591,1756132249558,-480.0,0.00041095,30]
[381306593,1756132249567,-151.0,0.00041095,30]
[381306595,1756132249576,-151.0,0.00041095,30]
[381306597,1756132249585,-151.0,0.00041095,30]
[381306599,1756132249595,-480.0,0.00041095,30]
[381306601,1756132249604,-480.0,0.00041095,30]
[381306603,1756132249613,-480.0,0.00041095,30]
[381306605,1756132249623,-480.0,0.00041095,30]
[381306607,1756132249632,-747.73,0.00041095,30]
[381306609,1756132249641,-480.0,0.00041095,30]
[381306611,1756132249651,-480.0,0.00041095,30]
[381306613,1756132249660,-480.0,0.00041095,30]
[381306634,1756132249828,-480.0,0.00041095,30]
[381306638,1756132249864,-480.0,0.00041095,30]
[381306640,1756132249874,-151.0,0.00041095,30]
[381306642,1756132249883,-151.0,0.00041095,30]
[381306644,1756132249893,-151.0,0.00041095,30]
[381306646,1756132249902,-151.0,0.00041095,30]
[381306648,1756132249912,-152.602771,0.00041095,30]
[381306650,1756132249922,-480.0,0.00041095,30]
[381306652,1756132249932,-480.0,0.00041095,30]
[381306654,1756132249942,-480.0,0.00041095,30]
[381306656,1756132249952,-671.3,0.00041095,30]
[381306658,1756132249961,-944.14,0.00041095,30]
[381306660,1756132249971,-480.0,0.00041095,30]
[381306662,1756132249981,-460.25256797,0.00041095,30]
[381306664,1756132249991,-151.663043,0.00041095,30]
[381306666,1756132250000,-480.0,0.00041095,30]
[381306668,1756132250011,-480.0,0.00041095,30]
[381306670,1756132250021,-480.0,0.00041095,30]
[381306672,1756132250030,-480.0,0.00041095,30]
[381306674,1756132250041,-480.0,0.00041095,30]
[381306676,1756132250050,-480.0,0.00041095,30]
[381306678,1756132250061,-845.88,0.00041095,30]
[381306680,1756132250071,-480.0,0.00041095,30]
[381306682,1756132250080,-480.0,0.00041095,30]
[381306684,1756132250090,-480.0,0.00041095,30]
[381306686,1756132250100,-480.0,0.00041095,30]
[381306688,1756132250109,-699.42,0.00041095,30]
[381306690,1756132250118,-151.0,0.00041095,30]
[381306692,1756132250127,-151.0,0.00041095,30]
[381306694,1756132250137,-155.571501,0.00041095,30]
[381306696,1756132250147,-480.0,0.00041095,30]
[381306698,1756132250157,-151.0,0.00041095,30]
[381306700,1756132250166,-151.0,0.00041095,30]
[381306702,1756132250175,-151.0,0.00041095,30]
[381306704,1756132250184,-480.0,0.00041095,30]
[381306706,1756132250194,-190.893212,0.00041095,30]
[381306709,1756132250203,-480.0,0.00041095,30]
[381306711,1756132250212,-3286.24,0.00041095,30]
[381306713,1756132250221,-2229.14,0.00041095,30]
[381306715,1756132250232,-480.0,0.00041095,30]
[381306717,1756132250241,-498.32,0.00041095,30]
[381306719,1756132250250,-480.0,0.00041095,30]
[381306721,1756132250259,-495.13,0.00041095,30]
[381306723,1756132250268,-480.0,0.00041095,30]
[381306725,1756132250278,-4114.9,0.00041095,30]
[381306727,1756132250288,-480.0,0.00041095,30]
[381306729,1756132250298,-480.0,0.00041095,30]
[381306731,1756132250307,-491.9,0.00041095,30]
[381306733,1756132250317,-480.0,0.00041095,30]
[381306735,1756132250326,-556.17,0.00041095,30]
[381306737,1756132250335,-480.0,0.00041095,30]
[381306739,1756132250344,-480.0,0.00041095,30]
[381306741,1756132250354,-3009.74,0.00041095,30]
[381306743,1756132250363,-480.0,0.00041095,20]
[381306745,1756132250372,-912.48,0.00041095,30]
[381306747,1756132250381,-1002.44,0.00041095,30]
[381306749,1756132250390,-480.0,0.00041095,30]
[381306751,1756132250399,-480.0,0.00041095,30]
[381306753,1756132250409,-480.0,0.00041095,30]
[381306755,1756132250418,-504.97,0.00041095,30]
[381306757,1756132250427,-480.0,0.00041095,30]
[381306759,1756132250436,-480.0,0.00041095,30]
[381306761,1756132250446,-566.76,0.00041095,30]
[381306763,1756132250456,-740.62,0.00041095,30]
[381306765,1756132250465,-547.94,0.00041095,30]
[381306767,1756132250474,-500.0,0.00041095,14]
[381306769,1756132250487,-480.0,0.00041095,30]
[381306771,1756132250496,-480.0,0.00041095,30]
[381306773,1756132250505,-480.0,0.00041095,30]
[381306775,1756132250515,-503.39,0.00041095,30]
[381306777,1756132250524,-480.0,0.00041095,30]
[381306779,1756132250534,-500.0,0.00041095,14]
[381306781,1756132250543,-337.03552988,0.00041095,30]
[381306783,1756132250552,-480.0,0.00041095,30]
[381306785,1756132250563,-480.0,0.00041095,30]
[381306787,1756132250572,-480.0,0.00041095,30]
[381306789,1756132250581,-480.0,0.00041095,30]
[381306791,1756132250590,-607.22,0.00041095,30]
[381306793,1756132250600,-1066.85,0.00041095,30]
[381306795,1756132250609,-480.0,0.00041095,30]
[381306797,1756132250619,-660.27,0.00041095,30]
[381306799,1756132250629,-1071.78,0.00041095,30]
[381306801,1756132250638,-480.0,0.00041095,30]
[381306803,1756132250647,-1188.07,0.00041095,30]
[381306805,1756132250657,-480.0,0.00041095,30]
[381306807,1756132250667,-151.0,0.00041095,30]
[381306809,1756132250676,-151.0,0.00041095,30]
[381306811,1756132250685,-151.0,0.00041095,30]
[381306813,1756132250695,-151.0,0.00041095,30]
[381306815,1756132250704,-151.0,0.00041095,30]
[381306817,1756132250713,-163.172449,0.00041095,30]
[381306819,1756132250722,-480.0,0.00041095,30]
[381306821,1756132250732,-480.0,0.00041095,30]
[381306823,1756132250741,-480.0,0.00041095,30]
[381306825,1756132250750,-151.0,0.00041095,30]
[381306827,1756132250760,-1297.22,0.00041095,30]
[381306829,1756132250769,-151.0,0.00041095,30]
[381306831,1756132250778,-547.43938802,0.00041095,30]
[381306833,1756132250787,-163.284195,0.00041095,30]
[381306835,1756132250797,-480.0,0.00041095,30]
[381306837,1756132250807,-480.0,0.00041095,30]
[381306839,1756132250816,-610.93,0.00041095,30]
[381306841,1756132250826,-891.1,0.00041095,30]
[381306843,1756132250835,-480.0,0.00041095,30]
[381306845,1756132250844,-579.51,0.00041095,30]
[381306847,1756132250854,-480.0,0.00041095,30]
[381306849,1756132250863,-480.0,0.00041095,30]
[381306851,1756132250872,-480.0,0.00041095,30]
[381306853,1756132250882,-151.0,0.00041095,30]
[381306855,1756132250891,-151.0,0.00041095,30]
[381306857,1756132250900,-151.0,0.00041095,30]
[381306859,1756132250909,-480.0,0.00041095,30]
[381306861,1756132250919,-1539.67,0.00041095,30]
[381306863,1756132250928,-480.0,0.00041095,30]
[381306865,1756132250937,-1055.64,0.00041095,120]
[381306867,1756132250947,-480.0,0.00041095,30]
[381306869,1756132250956,-824.03,0.00041095,30]
[381306871,1756132250965,-715.89,0.00041095,30]
[381306873,1756132250974,-151.0,0.00041095,30]
[381306875,1756132250984,-249.153603,0.00041095,30]
[381306877,1756132250993,-480.0,0.00041095,2]
[381306879,1756132251003,-1002.06,0.00041095,30]
[381306881,1756132251012,-480.0,0.00041095,30]
[381306883,1756132251021,-303.63914254,0.00041095,30]
[381306885,1756132251030,-480.0,0.00041095,30]
[381306887,1756132251041,-480.0,0.00041095,30]
[381306890,1756132251050,-480.0,0.00041095,30]
[381306891,1756132251059,-790.23,0.00041095,30]
[381306893,1756132251068,-500.0,0.00041095,30]
[381306895,1756132251078,-689.16,0.00041095,30]
[381306898,1756132251087,-500.0,0.00041095,30]
[381306900,1756132251096,-186.50004816,0.00041095,30]
[381306902,1756132251106,-164.35554201,0.00041095,30]
[381306904,1756132251115,-825.51,0.00041095,30]
[381306906,1756132251124,-2932.47,0.00041095,30]
[381306908,1756132251133,-151.957019,0.00041095,30]
[381306910,1756132251143,-480.644988,0.00041095,30]
[381306912,1756132251152,-1851.09,0.00041095,30]
[381306914,1756132251161,-318.8506167,0.00041095,30]
[381306916,1756132251170,-711.91,0.00041095,30]
[381306918,1756132251179,-480.0,0.00041095,30]
[381306920,1756132251188,-480.0,0.00041095,30]
[381306922,1756132251197,-480.0,0.00041095,30]
[381306924,1756132251207,-602.08,0.00041095,30]
[381306926,1756132251216,-1576.77,0.00041095,30]
[381306928,1756132251225,-480.0,0.00041095,30]
[381306930,1756132251235,-2117.8,0.00041095,30]
[381306932,1756132251244,-480.0,0.00041095,30]
[381306934,1756132251253,-480.0,0.00041095,30]
[381306936,1756132251263,-850.54,0.00041095,30]
[381306938,1756132251272,-480.0,0.00041095,30]
[381306940,1756132251281,-480.0,0.00041095,30]
[381306942,1756132251291,-480.0,0.00041095,30]
[381306944,1756132251300,-1140.37,0.00041095,30]
[381306946,1756132251309,-480.0,0.00041095,30]
[381306948,1756132251318,-688.14,0.00041095,14]
[381306950,1756132251327,-480.92170268,0.00041095,30]
[381306952,1756132251336,-480.0,0.00041095,30]
[381306954,1756132251346,-1006.77,0.00041095,30]
[381306956,1756132251355,-480.0,0.00041095,30]
[381306958,1756132251365,-480.0,0.00041095,30]
[381306960,1756132251374,-480.0,0.00041095,30]
[381306962,1756132251384,-480.0,0.00041095,30]
[381306964,1756132251393,-480.0,0.00041095,30]
[381306966,1756132251402,-773.04,0.00041095,30]
[381306968,1756132251412,-593.25,0.00041095,30]
[381306970,1756132251422,-480.0,0.00041095,30]
[381306972,1756132251432,-480.0,0.00041095,30]
[381306974,1756132251441,-480.0,0.00041095,30]
[381306976,1756132251450,-1112.69,0.00041095,30]
[381306978,1756132251459,-480.0,0.00041095,30]
[381306980,1756132251469,-480.0,0.00041095,30]
[381306982,1756132251480,-480.0,0.00041095,30]
[381306984,1756132251492,-613.65,0.00041095,30]
[381306986,1756132251502,-546.29,0.00041095,30]
[381306988,1756132251511,-480.0,0.00041095,30]
[381306990,1756132251520,-1379.88,0.00041095,30]
[381306992,1756132251530,-480.0,0.00041095,30]
[381306994,1756132251540,-929.9,0.00041095,30]
[381306996,1756132251549,-956.49,0.00041095,30]
[381306998,1756132251560,-692.37,0.00041095,30]